[Event "Late-Titled-Tuesday-Blitz-May-14-2024"]
[Site "Chess.com"]
[Date "2024.05.14"]
[Round "5"]
[White "Firouzja2003"]
[Black "ameetghasi100"]
[Result "0-1"]
[WhiteElo "3154"]
[BlackElo "2793"]
[TimeControl "180+1"]
[EndTime "14:56:14 PDT"]
[Termination "ameetghasi100 won by resignation"]

1. e4 {[%clk 0:03:00.9]} 1... g6 {[%clk 0:02:59.2]} 2. d4 {[%clk 0:03:00.8]}
2... d6 {[%clk 0:02:59]} 3. Nc3 {[%clk 0:03:01.7]} 3... Nf6 {[%clk 0:02:57.7]}
4. Be3 {[%clk 0:03:02.4]} 4... a6 {[%clk 0:02:57.5]} 5. Nf3 {[%clk 0:03:00.6]}
5... Bg7 {[%clk 0:02:56.6]} 6. a4 {[%clk 0:02:58]} 6... O-O {[%clk 0:02:53.6]}
7. h3 {[%clk 0:02:58.2]} 7... b6 {[%clk 0:02:53.9]} 8. e5 {[%clk 0:02:51.4]}
8... Ne8 {[%clk 0:02:49]} 9. Bc4 {[%clk 0:02:49.7]} 9... Nc6 {[%clk 0:02:45.9]}
10. Bd5 {[%clk 0:02:42.7]} 10... Bd7 {[%clk 0:02:15.4]} 11. h4 {[%clk
0:02:41.5]} 11... h5 {[%clk 0:02:14.8]} 12. Ng5 {[%clk 0:02:31.7]} 12... e6
{[%clk 0:02:14.4]} 13. Be4 {[%clk 0:02:30.3]} 13... dxe5 {[%clk 0:01:58.7]} 14.
dxe5 {[%clk 0:02:31.2]} 14... Nxe5 {[%clk 0:01:58.7]} 15. Bxa8 {[%clk
0:02:24.1]} 15... Qxa8 {[%clk 0:01:59.6]} 16. Qe2 {[%clk 0:02:24.7]} 16... Qxg2
{[%clk 0:01:51.8]} 17. O-O-O {[%clk 0:02:24.6]} 17... Nd6 {[%clk 0:01:52]} 18.
Bd4 {[%clk 0:02:09]} 18... Qg4 {[%clk 0:01:32.3]} 19. Qxg4 {[%clk 0:01:42.5]}
19... Nxg4 {[%clk 0:01:04.2]} 20. Bxb6 {[%clk 0:01:28.1]} 20... Bc6 {[%clk
0:00:55.1]} 21. Bxc7 {[%clk 0:01:27.9]} 21... Nf5 {[%clk 0:00:54.8]} 22. Rhf1
{[%clk 0:01:13.3]} 22... Nxh4 {[%clk 0:00:47.1]} 23. Rd6 {[%clk 0:00:59.7]}
23... Bg2 {[%clk 0:00:43.6]} 24. Rg1 {[%clk 0:00:48.1]} 24... Rc8 {[%clk
0:00:17.7]} 25. Rd7 {[%clk 0:00:19.2]} 25... Bh6 {[%clk 0:00:13.3]} 26. Bf4
{[%clk 0:00:18.2]} 26... Bc6 {[%clk 0:00:10.1]} 27. Ra7 {[%clk 0:00:04.1]} 27...
Bxg5 {[%clk 0:00:08.8]} 28. Bxg5 {[%clk 0:00:04.4]} 28... Nf3 {[%clk 0:00:08.7]}
29. Rxg4 {[%clk 0:00:04.9]} 29... hxg4 {[%clk 0:00:08.5]} 30. Be3 {[%clk
0:00:05.6]} 30... g5 {[%clk 0:00:07]} 31. Rxa6 {[%clk 0:00:05.5]} 31... f5
{[%clk 0:00:07.5]} 32. a5 {[%clk 0:00:04.7]} 32... f4 {[%clk 0:00:07.7]} 33. Bc5
{[%clk 0:00:05.3]} 33... Bb7 {[%clk 0:00:06.1]} 34. Rb6 {[%clk 0:00:01.4]} 34...
Rxc5 {[%clk 0:00:06]} 35. b4 {[%clk 0:00:02]} 35... Rxc3 {[%clk 0:00:05.9]} 36.
Rxb7 {[%clk 0:00:02.8]} 36... g3 {[%clk 0:00:05.9]} 37. fxg3 {[%clk 0:00:03.1]}
37... fxg3 {[%clk 0:00:06.8]} 38. Kb2 {[%clk 0:00:02.8]} 38... Rc8 {[%clk
0:00:06.8]} 39. Rd7 {[%clk 0:00:00.9]} 39... g2 {[%clk 0:00:06.6]} 40. Rd1
{[%clk 0:00:01.8]} 40... g1=Q {[%clk 0:00:05.6]} 41. Rxg1 {[%clk 0:00:02.5]}
41... Nxg1 {[%clk 0:00:06.5]} 42. b5 {[%clk 0:00:03.1]} 42... Ne2 {[%clk
0:00:05.8]} 43. b6 {[%clk 0:00:03.3]} 43... Nd4 {[%clk 0:00:05.5]} 44. c4 {[%clk
0:00:03.5]} 44... Nc6 {[%clk 0:00:05.5]} 45. b7 {[%clk 0:00:03.4]} 45... Rb8
{[%clk 0:00:05.3]} 46. Kc3 {[%clk 0:00:03.9]} 46... Nxa5 {[%clk 0:00:04.9]} 0-1

[Event "Late-Titled-Tuesday-Blitz-May-14-2024"]
[Site "Chess.com"]
[Date "2024.05.14"]
[Round "5"]
[White "marik_spb"]
[Black "Puzzlebot_1294"]
[Result "1-0"]
[WhiteElo "2517"]
[BlackElo "2634"]
[TimeControl "180+1"]
[EndTime "14:56:14 PDT"]
[Termination "marik_spb won by checkmate"]

1. e4 {[%clk 0:02:58.1]} 1... e5 {[%clk 0:02:59.3]} 2. Nf3 {[%clk 0:02:57.9]}
2... Nc6 {[%clk 0:02:58.6]} 3. Bc4 {[%clk 0:02:58]} 3... Bc5 {[%clk 0:02:56.3]}
4. c3 {[%clk 0:02:55.5]} 4... Nf6 {[%clk 0:02:54]} 5. O-O {[%clk 0:02:55.8]}
5... Nxe4 {[%clk 0:02:50.9]} 6. d4 {[%clk 0:02:55.7]} 6... d5 {[%clk 0:02:48.9]}
7. dxc5 {[%clk 0:02:33.2]} 7... dxc4 {[%clk 0:02:46.9]} 8. Qe2 {[%clk
0:02:33.5]} 8... Qd3 {[%clk 0:02:42.8]} 9. Re1 {[%clk 0:02:32.3]} 9... Qxe2
{[%clk 0:02:22]} 10. Rxe2 {[%clk 0:02:33.2]} 10... Nxc5 {[%clk 0:02:20.7]} 11.
Nxe5 {[%clk 0:02:31.1]} 11... O-O {[%clk 0:01:57.6]} 12. Nxc4 {[%clk 0:02:21.3]}
12... Bf5 {[%clk 0:01:53]} 13. Be3 {[%clk 0:02:03.9]} 13... Ne6 {[%clk 0:01:12]}
14. Nbd2 {[%clk 0:02:00.2]} 14... Bd3 {[%clk 0:01:05.7]} 15. Ree1 {[%clk
0:01:45.5]} 15... Rfe8 {[%clk 0:01:05.6]} 16. a4 {[%clk 0:01:37]} 16... f5
{[%clk 0:00:57.2]} 17. f3 {[%clk 0:01:18.4]} 17... Rad8 {[%clk 0:00:52.3]} 18.
Na3 {[%clk 0:00:29.6]} 18... f4 {[%clk 0:00:45.5]} 19. Bf2 {[%clk 0:00:29.2]}
19... a6 {[%clk 0:00:43.7]} 20. Ne4 {[%clk 0:00:25.5]} 20... Bxe4 {[%clk
0:00:37.5]} 21. Rxe4 {[%clk 0:00:23.8]} 21... g5 {[%clk 0:00:35.6]} 22. Rae1
{[%clk 0:00:22.9]} 22... Ng7 {[%clk 0:00:34.1]} 23. Rxe8+ {[%clk 0:00:22]} 23...
Rxe8 {[%clk 0:00:35]} 24. Rxe8+ {[%clk 0:00:21.9]} 24... Nxe8 {[%clk 0:00:35.9]}
25. Kf1 {[%clk 0:00:21.1]} 25... Kf7 {[%clk 0:00:35.4]} 26. Ke2 {[%clk
0:00:21.3]} 26... Ke6 {[%clk 0:00:36.3]} 27. Nc4 {[%clk 0:00:18.9]} 27... Nf6
{[%clk 0:00:34.3]} 28. b3 {[%clk 0:00:15]} 28... Nd5 {[%clk 0:00:33.9]} 29. Kd3
{[%clk 0:00:15.2]} 29... b5 {[%clk 0:00:30.8]} 30. axb5 {[%clk 0:00:13.3]} 30...
axb5 {[%clk 0:00:31.7]} 31. Nd2 {[%clk 0:00:13.6]} 31... Ne5+ {[%clk 0:00:31]}
32. Kc2 {[%clk 0:00:13.4]} 32... c6 {[%clk 0:00:30.3]} 33. Ne4 {[%clk
0:00:13.3]} 33... h6 {[%clk 0:00:29.2]} 34. Bd4 {[%clk 0:00:13.3]} 34... Nf7
{[%clk 0:00:26.6]} 35. Nc5+ {[%clk 0:00:12.5]} 35... Kf5 {[%clk 0:00:25.4]} 36.
Kd3 {[%clk 0:00:10.4]} 36... g4 {[%clk 0:00:23.7]} 37. c4 {[%clk 0:00:10.6]}
37... Ne7 {[%clk 0:00:22.4]} 38. fxg4+ {[%clk 0:00:08.7]} 38... Kxg4 {[%clk
0:00:21.5]} 39. Ne6 {[%clk 0:00:08.5]} 39... Nf5 {[%clk 0:00:20.1]} 40. Bf2
{[%clk 0:00:06.5]} 40... Ne5+ {[%clk 0:00:15.9]} 41. Ke4 {[%clk 0:00:03.6]}
41... bxc4 {[%clk 0:00:15.1]} 42. h3+ {[%clk 0:00:03.2]} 42... Kh5 {[%clk
0:00:14.9]} 43. Kxf5 {[%clk 0:00:02]} 43... Nd3 {[%clk 0:00:15.8]} 44. Ng7#
{[%clk 0:00:01.6]} 1-0

[Event "Late-Titled-Tuesday-Blitz-May-14-2024"]
[Site "Chess.com"]
[Date "2024.05.14"]
[Round "5"]
[White "dealshark"]
[Black "nitpicker"]
[Result "1-0"]
[WhiteElo "2554"]
[BlackElo "2301"]
[TimeControl "180+1"]
[EndTime "14:56:14 PDT"]
[Termination "dealshark won on time"]

1. e4 {[%clk 0:03:00.9]} 1... c5 {[%clk 0:02:59.9]} 2. c3 {[%clk 0:03:01]} 2...
d5 {[%clk 0:02:59]} 3. exd5 {[%clk 0:03:01.4]} 3... Qxd5 {[%clk 0:02:59.1]} 4.
d4 {[%clk 0:03:02.3]} 4... Nc6 {[%clk 0:02:58.1]} 5. Nf3 {[%clk 0:03:02.9]} 5...
Nf6 {[%clk 0:02:56.9]} 6. Be3 {[%clk 0:02:58.9]} 6... e6 {[%clk 0:02:43.4]} 7.
a3 {[%clk 0:02:54.8]} 7... cxd4 {[%clk 0:02:38.5]} 8. cxd4 {[%clk 0:02:52.2]}
8... Be7 {[%clk 0:02:38.3]} 9. Nc3 {[%clk 0:02:50.5]} 9... Qd6 {[%clk
0:02:35.8]} 10. Bd3 {[%clk 0:02:50.5]} 10... O-O {[%clk 0:02:33.9]} 11. O-O
{[%clk 0:02:50.7]} 11... b6 {[%clk 0:02:22.7]} 12. Qe2 {[%clk 0:02:45]} 12...
Bb7 {[%clk 0:02:18.2]} 13. Rad1 {[%clk 0:02:41]} 13... Rad8 {[%clk 0:01:54.1]}
14. Rfe1 {[%clk 0:02:37.8]} 14... Qb8 {[%clk 0:01:42.1]} 15. Bb1 {[%clk
0:02:36.3]} 15... Rfe8 {[%clk 0:01:18.2]} 16. Bg5 {[%clk 0:02:36.2]} 16... Nd5
{[%clk 0:01:07.9]} 17. Qe4 {[%clk 0:02:34.9]} 17... g6 {[%clk 0:01:04.6]} 18.
Qh4 {[%clk 0:02:35]} 18... Nxc3 {[%clk 0:00:40.7]} 19. bxc3 {[%clk 0:02:34]}
19... Qd6 {[%clk 0:00:34.2]} 20. Be4 {[%clk 0:01:56.5]} 20... Na5 {[%clk
0:00:32.6]} 21. Ne5 {[%clk 0:01:50.6]} 21... Bxe4 {[%clk 0:00:25.6]} 22. Rxe4
{[%clk 0:01:46.4]} 22... Bxg5 {[%clk 0:00:20.8]} 23. Qxg5 {[%clk 0:01:44.6]}
23... Qe7 {[%clk 0:00:21.4]} 24. Qh6 {[%clk 0:01:35.6]} 24... Qf8 {[%clk
0:00:21.3]} 25. Qf4 {[%clk 0:01:30.5]} 25... f6 {[%clk 0:00:17.8]} 26. Nd3
{[%clk 0:01:24]} 26... Rd5 {[%clk 0:00:15.9]} 27. Rde1 {[%clk 0:01:14.1]} 27...
Rf5 {[%clk 0:00:15.5]} 28. Qc7 {[%clk 0:01:05.9]} 28... Re7 {[%clk 0:00:11.5]}
29. Qg3 {[%clk 0:01:02.8]} 29... Qf7 {[%clk 0:00:08.2]} 30. Nb4 {[%clk
0:00:58.4]} 30... Kg7 {[%clk 0:00:07.8]} 31. h3 {[%clk 0:00:56.7]} 31... Nc4
{[%clk 0:00:06.8]} 32. d5 {[%clk 0:00:49.8]} 32... e5 {[%clk 0:00:06.1]} 33.
Rxc4 {[%clk 0:00:47.1]} 33... a5 {[%clk 0:00:02.4]} 34. Nc6 {[%clk 0:00:37.2]}
34... Rd7 {[%clk 0:00:02.7]} 35. Qg4 {[%clk 0:00:08.3]} 35... Rxd5 {[%clk
0:00:02.6]} 36. a4 {[%clk 0:00:06.4]} 36... Rd2 {[%clk 0:00:02.5]} 37. Rd1
{[%clk 0:00:04.1]} 37... Qd5 {[%clk 0:00:02.3]} 38. Rxd2 {[%clk 0:00:04.1]}
38... Qxd2 {[%clk 0:00:02.9]} 39. h4 {[%clk 0:00:04.7]} 39... Qxf2+ {[%clk
0:00:02.5]} 40. Kh1 {[%clk 0:00:05.3]} 40... Rh5 {[%clk 0:00:02.4]} 41. Ne7
{[%clk 0:00:03.7]} 41... Qf1+ {[%clk 0:00:02.1]} 42. Kh2 {[%clk 0:00:03.8]}
42... Qd3 {[%clk 0:00:01.6]} 43. Re4 {[%clk 0:00:03.6]} 43... h6 {[%clk
0:00:00.2]} 44. c4 {[%clk 0:00:01.9]} 1-0

[Event "Late-Titled-Tuesday-Blitz-May-14-2024"]
[Site "Chess.com"]
[Date "2024.05.14"]
[Round "5"]
[White "CheckBits"]
[Black "lluiss"]
[Result "0-1"]
[WhiteElo "2374"]
[BlackElo "2225"]
[TimeControl "180+1"]
[EndTime "14:56:14 PDT"]
[Termination "lluiss won on time"]

1. e4 {[%clk 0:03:00.9]} 1... c5 {[%clk 0:02:57]} 2. Nf3 {[%clk 0:02:59.7]} 2...
d6 {[%clk 0:02:53.6]} 3. c3 {[%clk 0:02:54.8]} 3... Nf6 {[%clk 0:02:52.3]} 4.
Be2 {[%clk 0:02:52.6]} 4... Nbd7 {[%clk 0:02:51.9]} 5. d3 {[%clk 0:02:50.2]}
5... b6 {[%clk 0:02:51.5]} 6. O-O {[%clk 0:02:49.1]} 6... Bb7 {[%clk 0:02:51.4]}
7. h3 {[%clk 0:02:44.1]} 7... g6 {[%clk 0:02:51.1]} 8. Bf4 {[%clk 0:02:43.1]}
8... Bg7 {[%clk 0:02:46.8]} 9. Nbd2 {[%clk 0:02:41.5]} 9... O-O {[%clk
0:02:45.9]} 10. Re1 {[%clk 0:02:40.3]} 10... e5 {[%clk 0:02:44.4]} 11. Be3
{[%clk 0:02:38.4]} 11... Re8 {[%clk 0:02:42.2]} 12. c4 {[%clk 0:02:32.8]} 12...
Nh5 {[%clk 0:02:38.9]} 13. g3 {[%clk 0:02:26.1]} 13... Rf8 {[%clk 0:01:54.1]}
14. Nh4 {[%clk 0:02:15.2]} 14... Ndf6 {[%clk 0:01:51.7]} 15. Nb1 {[%clk
0:01:57.9]} 15... Bc8 {[%clk 0:01:51.2]} 16. Kh2 {[%clk 0:01:55.2]} 16... Qd7
{[%clk 0:01:51.3]} 17. Bf1 {[%clk 0:01:48.8]} 17... Ne8 {[%clk 0:01:19.7]} 18.
Nc3 {[%clk 0:01:44.5]} 18... Nc7 {[%clk 0:01:19.4]} 19. f4 {[%clk 0:01:22.8]}
19... exf4 {[%clk 0:01:17]} 20. gxf4 {[%clk 0:01:19.6]} 20... Qe7 {[%clk
0:01:02.4]} 21. Be2 {[%clk 0:01:13.2]} 21... Qxh4 {[%clk 0:00:59.5]} 22. Bg4
{[%clk 0:01:03]} 22... Qg3+ {[%clk 0:00:53.8]} 23. Kh1 {[%clk 0:01:02.2]} 23...
Nxf4 {[%clk 0:00:47.7]} 24. Qd2 {[%clk 0:00:33.2]} 24... Nxh3 {[%clk 0:00:43.3]}
25. Bxc8 {[%clk 0:00:28.9]} 25... Raxc8 {[%clk 0:00:39.5]} 26. Qg2 {[%clk
0:00:28.4]} 26... Qh4 {[%clk 0:00:27.2]} 27. Ne2 {[%clk 0:00:21.3]} 27... Nf4+
{[%clk 0:00:24.3]} 28. Qh2 {[%clk 0:00:20.7]} 28... Qxh2+ {[%clk 0:00:24.1]} 29.
Kxh2 {[%clk 0:00:20.4]} 29... Nxd3 {[%clk 0:00:22.2]} 30. Red1 {[%clk
0:00:19.9]} 30... Nxb2 {[%clk 0:00:22.2]} 31. Bf4 {[%clk 0:00:04.9]} 31... Nxd1
{[%clk 0:00:20.2]} 32. Rxd1 {[%clk 0:00:04.7]} 32... Ne6 {[%clk 0:00:20.2]} 33.
Bg3 {[%clk 0:00:03.6]} 33... Be5 {[%clk 0:00:18.5]} 34. Bxe5 {[%clk 0:00:01.9]}
34... dxe5 {[%clk 0:00:19.4]} 35. Nc3 {[%clk 0:00:02]} 35... Nd4 {[%clk
0:00:18.6]} 36. Nd5 {[%clk 0:00:02.9]} 36... Kg7 {[%clk 0:00:18]} 37. Kg2 {[%clk
0:00:02.2]} 37... f5 {[%clk 0:00:18]} 38. a4 {[%clk 0:00:02.1]} 38... fxe4
{[%clk 0:00:17.4]} 39. Ra1 {[%clk 0:00:02]} 39... e3 {[%clk 0:00:14.7]} 40. a5
{[%clk 0:00:02.9]} 40... Rf2+ {[%clk 0:00:14.3]} 41. Kg3 {[%clk 0:00:02]} 41...
Rcf8 {[%clk 0:00:13.2]} 42. axb6 {[%clk 0:00:00.1]} 42... axb6 {[%clk
0:00:12.6]} 43. Ra7+ {[%clk 0:00:01]} 43... Kh6 {[%clk 0:00:11.6]} 44. Nxe3
{[%clk 0:00:00.3]} 44... R8f3+ {[%clk 0:00:10.4]} 45. Kg4 {[%clk 0:00:00.3]}
45... Rxe3 {[%clk 0:00:10.5]} 0-1

[Event "Late-Titled-Tuesday-Blitz-May-14-2024"]
[Site "Chess.com"]
[Date "2024.05.14"]
[Round "5"]
[White "ural58"]
[Black "slidingknight2775"]
[Result "1-0"]
[WhiteElo "2476"]
[BlackElo "2603"]
[TimeControl "180+1"]
[EndTime "14:56:16 PDT"]
[Termination "ural58 won by resignation"]

1. e4 {[%clk 0:02:53.7]} 1... c5 {[%clk 0:02:59.8]} 2. b3 {[%clk 0:02:52.6]}
2... Nc6 {[%clk 0:02:53.1]} 3. Bb2 {[%clk 0:02:52.2]} 3... d6 {[%clk 0:02:46.7]}
4. f4 {[%clk 0:02:52]} 4... Nf6 {[%clk 0:02:45.1]} 5. Qf3 {[%clk 0:02:51.2]}
5... Nd4 {[%clk 0:02:39.9]} 6. Bxd4 {[%clk 0:02:48.7]} 6... cxd4 {[%clk
0:02:40.8]} 7. e5 {[%clk 0:02:48.7]} 7... Nd7 {[%clk 0:02:33.8]} 8. Qe4 {[%clk
0:02:48.5]} 8... dxe5 {[%clk 0:02:29.7]} 9. Nf3 {[%clk 0:02:42.6]} 9... g6
{[%clk 0:01:47.4]} 10. fxe5 {[%clk 0:02:26]} 10... Bg7 {[%clk 0:01:31.6]} 11.
Bc4 {[%clk 0:02:05.4]} 11... O-O {[%clk 0:01:18.6]} 12. e6 {[%clk 0:02:04.9]}
12... Nc5 {[%clk 0:01:15.8]} 13. exf7+ {[%clk 0:02:04.4]} 13... Kh8 {[%clk
0:01:16.4]} 14. Qd5 {[%clk 0:01:53.8]} 14... Qxd5 {[%clk 0:01:11.8]} 15. Bxd5
{[%clk 0:01:53.5]} 15... e6 {[%clk 0:00:59.4]} 16. Bc4 {[%clk 0:01:43]} 16...
Bd7 {[%clk 0:00:54.4]} 17. b4 {[%clk 0:01:36.1]} 17... Ne4 {[%clk 0:00:38.1]}
18. d3 {[%clk 0:01:36.2]} 18... Nd6 {[%clk 0:00:37.5]} 19. Nbd2 {[%clk
0:01:35.7]} 19... a5 {[%clk 0:00:32.4]} 20. bxa5 {[%clk 0:01:30.3]} 20... Rxa5
{[%clk 0:00:32.3]} 21. O-O {[%clk 0:01:29.9]} 21... Rxf7 {[%clk 0:00:30.4]} 22.
Nb3 {[%clk 0:01:29]} 22... Nxc4 {[%clk 0:00:29.9]} 23. dxc4 {[%clk 0:01:26]}
23... Raf5 {[%clk 0:00:19.4]} 24. Nbxd4 {[%clk 0:01:23.9]} 24... Rf4 {[%clk
0:00:19.3]} 25. c3 {[%clk 0:01:21.4]} 25... e5 {[%clk 0:00:19.7]} 26. Nb5 {[%clk
0:01:19.5]} 26... Bc6 {[%clk 0:00:16.8]} 27. Ng5 {[%clk 0:01:16.1]} 27... R7f5
{[%clk 0:00:16.6]} 28. Ne6 {[%clk 0:01:13.2]} 28... Rxf1+ {[%clk 0:00:15.1]} 29.
Rxf1 {[%clk 0:01:12.9]} 29... Kg8 {[%clk 0:00:09]} 30. Nxg7 {[%clk 0:01:08.1]}
30... Kxg7 {[%clk 0:00:05.6]} 31. g3 {[%clk 0:01:02.1]} 31... Rg5 {[%clk
0:00:02.7]} 32. Nd6 {[%clk 0:00:56.3]} 32... h5 {[%clk 0:00:01.7]} 33. Rf7+
{[%clk 0:00:54.5]} 33... Kg8 {[%clk 0:00:01.8]} 34. Re7 {[%clk 0:00:49.3]} 34...
Rg4 {[%clk 0:00:02.3]} 35. Kf2 {[%clk 0:00:44.5]} 35... h4 {[%clk 0:00:02.6]}
36. Rxe5 {[%clk 0:00:39.7]} 36... hxg3+ {[%clk 0:00:03.2]} 37. hxg3 {[%clk
0:00:39.9]} 37... Kg7 {[%clk 0:00:03.8]} 38. Re7+ {[%clk 0:00:34.9]} 38... Kh6
{[%clk 0:00:03.1]} 39. Nf7+ {[%clk 0:00:24.9]} 39... Kh5 {[%clk 0:00:03.7]} 40.
Re5+ {[%clk 0:00:23.9]} 40... g5 {[%clk 0:00:02.8]} 41. Re6 {[%clk 0:00:23.9]}
41... Re4 {[%clk 0:00:02.1]} 42. Rxe4 {[%clk 0:00:18]} 42... Bxe4 {[%clk
0:00:03]} 43. Nd6 {[%clk 0:00:16.9]} 43... Bb1 {[%clk 0:00:03.1]} 44. Nxb7
{[%clk 0:00:13.7]} 44... Bxa2 {[%clk 0:00:03.6]} 45. c5 {[%clk 0:00:14.2]} 45...
Bd5 {[%clk 0:00:04.5]} 46. Nd8 {[%clk 0:00:14.1]} 46... Kg6 {[%clk 0:00:04.4]}
47. c6 {[%clk 0:00:14.7]} 47... Kf6 {[%clk 0:00:04.9]} 48. c7 {[%clk 0:00:15.1]}
1-0

[Event "Late-Titled-Tuesday-Blitz-May-14-2024"]
[Site "Chess.com"]
[Date "2024.05.14"]
[Round "5"]
[White "DonPreuss"]
[Black "dennisodessa"]
[Result "0-1"]
[WhiteElo "2186"]
[BlackElo "2456"]
[TimeControl "180+1"]
[EndTime "14:56:19 PDT"]
[Termination "dennisodessa won on time"]

1. d4 {[%clk 0:02:50.6]} 1... Nf6 {[%clk 0:02:59.4]} 2. Nc3 {[%clk 0:02:49.3]}
2... d5 {[%clk 0:02:59.3]} 3. e4 {[%clk 0:02:49.8]} 3... dxe4 {[%clk 0:02:57.7]}
4. f3 {[%clk 0:02:49.9]} 4... exf3 {[%clk 0:02:57.3]} 5. Nxf3 {[%clk 0:02:50.6]}
5... e6 {[%clk 0:02:57.9]} 6. Bd3 {[%clk 0:02:50.3]} 6... c5 {[%clk 0:02:55.9]}
7. dxc5 {[%clk 0:02:49.8]} 7... Bxc5 {[%clk 0:02:56.8]} 8. Bg5 {[%clk
0:02:49.9]} 8... Nbd7 {[%clk 0:02:48.5]} 9. Qd2 {[%clk 0:02:49.4]} 9... Qa5
{[%clk 0:02:41.3]} 10. a3 {[%clk 0:02:30.1]} 10... a6 {[%clk 0:02:38.8]} 11. Rb1
{[%clk 0:02:16.1]} 11... Ba7 {[%clk 0:02:30.5]} 12. Qf4 {[%clk 0:01:59.4]} 12...
h6 {[%clk 0:02:24.3]} 13. Qh4 {[%clk 0:01:58.7]} 13... O-O {[%clk 0:01:50.2]}
14. Bxh6 {[%clk 0:01:54.4]} 14... gxh6 {[%clk 0:01:51.1]} 15. Qxh6 {[%clk
0:01:54.9]} 15... Qh5 {[%clk 0:01:51.6]} 16. Qf4 {[%clk 0:01:52.9]} 16... Qg4
{[%clk 0:01:45.9]} 17. Qd2 {[%clk 0:01:45.1]} 17... Nc5 {[%clk 0:01:38.5]} 18.
Rf1 {[%clk 0:01:35.6]} 18... Nxd3+ {[%clk 0:01:27]} 19. Qxd3 {[%clk 0:01:26.4]}
19... e5 {[%clk 0:01:18.3]} 20. Nxe5 {[%clk 0:01:14.7]} 20... Qe6 {[%clk
0:01:10.4]} 21. Qg3+ {[%clk 0:01:02.5]} 21... Ng4 {[%clk 0:01:10.3]} 22. Qxg4+
{[%clk 0:00:41.4]} 22... Qxg4 {[%clk 0:01:11.2]} 23. Nxg4 {[%clk 0:00:41.6]}
23... Bxg4 {[%clk 0:01:11.5]} 24. Rf4 {[%clk 0:00:40.5]} 24... Rfe8+ {[%clk
0:00:52.3]} 25. Kf1 {[%clk 0:00:40.5]} 25... f5 {[%clk 0:00:43.5]} 26. h3 {[%clk
0:00:39.6]} 26... Be3 {[%clk 0:00:41.6]} 27. Rb4 {[%clk 0:00:33.7]} 27... Bh5
{[%clk 0:00:41.7]} 28. Rxb7 {[%clk 0:00:32.9]} 28... Bf7 {[%clk 0:00:39.3]} 29.
Rd1 {[%clk 0:00:21.9]} 29... Rad8 {[%clk 0:00:30.1]} 30. Rxd8 {[%clk 0:00:16.5]}
30... Rxd8 {[%clk 0:00:31]} 31. Ke2 {[%clk 0:00:16.8]} 31... f4 {[%clk
0:00:30.5]} 32. Ne4 {[%clk 0:00:15.3]} 32... Bg6 {[%clk 0:00:25.3]} 33. Nf6+
{[%clk 0:00:15.2]} 33... Kh8 {[%clk 0:00:25.8]} 34. h4 {[%clk 0:00:10.5]} 34...
Bxc2 {[%clk 0:00:23.9]} 35. h5 {[%clk 0:00:08.5]} 35... Rd2+ {[%clk 0:00:13.7]}
36. Kf3 {[%clk 0:00:08.5]} 36... Rf2+ {[%clk 0:00:13.9]} 37. Kg4 {[%clk
0:00:06.7]} 37... Rxg2+ {[%clk 0:00:14.8]} 38. Kh3 {[%clk 0:00:06.5]} 38... Rg3+
{[%clk 0:00:15.3]} 39. Kh2 {[%clk 0:00:05.9]} 39... Bg1+ {[%clk 0:00:10.3]} 40.
Kh1 {[%clk 0:00:05]} 40... Bd4 {[%clk 0:00:11.2]} 41. Rb8+ {[%clk 0:00:02.9]}
41... Kg7 {[%clk 0:00:11.5]} 42. Ne8+ {[%clk 0:00:02.6]} 42... Kh6 {[%clk
0:00:11.4]} 43. Nd6 {[%clk 0:00:00.4]} 43... Kxh5 {[%clk 0:00:07.7]} 0-1